Cogmind - Beta 14 @@@ ROGUE MODE // 2025.03.28 @ 09:04:22 Player: winnking222 Result: Destroyed by Y-54 Guardian with Flak Gun Performance ------------- Evolutions (3) 1500 Regions Visited (7) 1400 Robots Destroyed (139) 695 Value Destroyed (3968) 3968 Prototype IDs (14) 280 Alien Tech Used (0) 0 Bonus (809) 809 TOTAL SCORE: 8652 Bonus ------- High Alert Combat Kills 671 Entered Garrisons 200 Friendly Fire -62 Cogmind --------- Core Integrity 0/700 Matter 300/300 Energy 98/100 System Corruption 0% Temperature Cool (6) Movement Core (50) Location -7/Factory Parts ------- > --- POWER (1) -------- (None) > --- PROPULSION (4) --- (None) > --- UTILITY (6) ------ Improved Targeting Computer Hacking Suite Hacking Suite Hacking Suite > --- WEAPON (2) ------- (None) > --- INVENTORY (5) ---- High-capacity Matter Pod (200) Improved Light Armor Plating Insulated Plating Dispersion Rifle Grenade Launcher Peak State ------------ > --- POWER ------------ Heavy Ion Engine > --- PROPULSION ------- Armored Treads Advanced Treads Advanced Treads Advanced Treads > --- UTILITY ---------- Large Storage Unit Improved Sensor Array Improved Targeting Computer Reactive Plating > --- WEAPON ----------- Advanced Assault Cannon Advanced Assault Cannon > --- INVENTORY -------- Improved Ion Engine Light Nuclear Core Improved Heat Sink Cooling System High-capacity Matter Pod Hacking Suite Hacking Suite Hacking Suite Hacking Suite Hacking Suite Improved Assault Rifle Improved Assault Rifle Flak Cannon Grenade Launcher [Rating: 35] Favorites ----------- Power Heavy Ion Engine Engine Heavy Ion Engine Power Core Light Nuclear Core Propulsion Improved Aluminum Leg Treads Advanced Treads Leg Improved Aluminum Leg Flight Unit Impulse Thruster Utility Large Storage Unit Device Improved Sensor Array Storage Large Storage Unit Processor Improved Targeting Computer Hackware Hacking Suite Protection Light Armor Plating Weapon Autogun Energy Gun Medium Laser Energy Cannon Improved EM Pulse Cannon Ballistic Gun Autogun Ballistic Cannon Advanced Assault Cannon Launcher Grenade Launcher Slashing Weapon Scythe Build | -11 -10 -9 -8 -8 -7 -7 -7 ------- Run | Yrd Mat Mat Mat Gar Fac Was Fac Slots Evolved 6 | . . 2 2 . 2 . . Power . | . . . . . . . . Propulsion 2 | . . 2 . . . . . Utility 4 | . . . 2 . 2 . . Weapon . | . . . . . . . . Parts Attached 104 | 6 9 44 15 7 20 3 . Power 8 | 1 1 3 1 1 1 . . Engine 7 | 1 1 3 1 1 . . . Core 1 | . . . . . 1 . . Reactor . | . . . . . . . . Propulsion 34 | 2 3 17 6 2 3 1 . Treads 13 | . 2 2 5 2 2 . . Leg 19 | 2 1 15 1 . . . . Wheel . | . . . . . . . . Hover . | . . . . . . . . Flight 2 | . . . . . 1 1 . Utility 23 | 1 2 4 5 1 8 2 . Device 2 | . . . 1 . 1 . . Storage 3 | 1 1 1 . . . . . Processor 2 | . . . 1 . 1 . . Hackware 6 | . . . . . 5 1 . Protection 10 | . 1 3 3 1 1 1 . Artifact . | . . . . . . . . Weapon 39 | 2 3 20 3 3 8 . . Energy Gun 8 | 1 1 6 . . . . . Energy Cannon 5 | . 1 1 . . 3 . . Ballistic Gun 14 | 1 1 7 1 2 2 . . Ballistic Cannon 9 | . . 6 2 . 1 . . Launcher 2 | . . . . 1 1 . . Special Weapon . | . . . . . . . . Impact Weapon . | . . . . . . . . Slashing Weapon 1 | . . . . . 1 . . Piercing Weapon . | . . . . . . . . Special Melee Weapon . | . . . . . . . . Unidentified Prototypes 2 | . . 2 . . . . . Parts Lost 38 | . 1 10 6 5 13 . 3 Power 4 | . 1 . . 1 2 . . Propulsion 18 | . . 6 3 2 6 . 1 Utility 9 | . . 2 2 1 3 . 1 Weapon 7 | . . 2 1 1 2 . 1 Highest Loss Streak 5 | . 1 3 2 4 5 . 3 To Critical Strikes . | . . . . . . . . Average Slot Usage (%) 92 | . 92 97 98 85 80 45 48 Engine 9 | . 13 11 9 8 2 . . Treads 15 | . 17 5 26 26 19 . . Leg 17 | . 10 36 9 . . . . Device 3 | . . . 9 9 4 . . Storage 9 | . 14 11 9 9 5 . . Processor 3 | . . . 5 9 12 7 7 Hackware 2 | . . . . . 13 25 28 Protection 9 | . 7 10 11 8 4 . 2 Energy Gun 2 | . 13 1 . . . . . Ballistic Gun 10 | . 14 18 3 7 3 . . Ballistic Cannon 4 | . . 2 14 4 . . . Peak Build Rating 35 | 6 8 23 35 31 35 31 31 Average Rating 21 | 3 6 18 31 27 27 20 23 On Entrance 17 | . 6 8 23 31 24 15 31 Naked Turns . | . . . . . . . . Heaviest Build 51 | 11 33 45 51 47 42 5 5 Greatest Support 86 | 20 40 52 86 86 85 7 7 Greatest Overweight (x) 2 | . 1 1 1 1 2 . 1 Average Overweight (x) . | . . . . . . . . Largest Inventory Capacity 15 | 8 15 15 15 15 15 5 5 Average Capacity 14 | 6 14 15 15 15 12 5 5 Most Carried 15 | 5 9 15 15 14 14 5 5 Average Carried 12 | 3 6 14 14 12 10 4 4 Final Capacity 15 | 8 15 15 15 15 5 5 5 Final Carried 14 | 3 9 14 14 11 5 4 5 Class Distribution -------------------- 89% | Mutant 6% | Hacker-Mutant 4% | Scavenger-Mutant Dominant Class ---------------- Mutant | -10/Materials Mutant | -9/Materials Mutant | -8/Materials Mutant | -8/Garrison Scavenger-Mutant | -7/Factory Hacker-Mutant | -7/Waste Hacker-Mutant | -7/Factory Resources | -11 -10 -9 -8 -8 -7 -7 -7 ----------- Run | Yrd Mat Mat Mat Gar Fac Was Fac Matter Collected 4296 | 235 390 1570 1045 709 286 61 . Remotely . | . . . . . . . . Salvage Created 4928 | . 448 2025 1294 321 334 506 . Parts 276 | . 27 135 73 20 13 8 . Haulers Intercepted 11 | . 2 6 3 . . . . Recyclers Shooed 2 | . . 2 . . . . . Parts Field Recycled . | . . . . . . . . Retrieved Matter . | . . . . . . . . Parts Self-Destructed . | . . . . . . . . Prevented . | . . . . . . . . Kills | -11 -10 -9 -8 -8 -7 -7 -7 ------- Run | Yrd Mat Mat Mat Gar Fac Was Fac Combat Hostiles Destroyed 96 | . 12 38 30 11 5 . . Guns 56 | . 11 29 11 4 1 . . Cannons 39 | . 1 9 19 7 3 . . AOE 1 | . . . . . 1 . . Classes Destroyed 12 | . 5 6 . . 1 . . Worker 6 | . . 5 1 . . . . Builder 5 | . . 2 3 . . . . Hauler 11 | . 2 6 3 . . . . Recycler 3 | . . 2 1 . . . . Mechanic 1 | . . 1 . . . . . Operator 10 | . 1 6 2 . 1 . . Watcher 7 | . 1 3 2 . 1 . . Swarmer 24 | . 6 8 6 4 . . . Grunt 51 | . 6 20 17 5 3 . . Duelist 3 | . . 2 1 . . . . Sentry 17 | . . 8 6 2 1 . . Hunter 1 | . . . . . 1 . . Best Kill Streak 11 | . 5 11 7 4 2 . . Combat Bots Only 7 | . 5 6 7 4 2 . . Max Kills in Single Turn 2 | . 1 2 2 1 1 . . Gunslinging 1 | . . 1 . . . . . Exploded 1 | . . . . . 1 . . Melee . | . . . . . . . . Uniques/NPCs Destroyed . | . . . . . . . . Combat | -11 -10 -9 -8 -8 -7 -7 -7 -------- Run | Yrd Mat Mat Mat Gar Fac Was Fac Hostile Shots Fired 879 | . 53 226 184 113 240 . 63 Missed 302 | . 15 67 38 46 96 . 40 Damage Taken 7544 | . 418 2334 1832 1046 1745 . 169 Core 1545 | . 83 255 292 210 574 . 131 Absorbed by Shields . | . . . . . . . . Ignored by Resistances 115 | . . . 82 33 . . . Regen/Repaired (Parts) 80 | . . . 80 . . . . Core Remaining (%) 52 | 100 66 36 . 8 . . . Volleys Fired 412 | . 56 172 109 50 25 . . Largest 2 | . 2 2 2 2 2 . . Hottest 138 | . 80 122 96 71 138 . . Shots Fired 773 | . 112 340 211 68 42 . . Gun 497 | . 108 280 64 28 17 . . Cannon 265 | . 4 60 147 33 21 . . Launcher 11 | . . . . 7 4 . . Special . | . . . . . . . . Kinetic 650 | . 56 305 211 61 17 . . Thermal 71 | . 56 15 . . . . . Explosive 11 | . . . . 7 4 . . Electromagnetic 41 | . . 20 . . 21 . . Robot Hit Streak 21 | . 9 10 20 12 21 . . Robot Miss Streak 8 | . 8 8 5 2 1 . . Penetration Max . | . . . . . . . . Secondary Targets 8 | . 2 5 . 1 . . . Max Gunslinging Chain 1 | . 1 1 . 1 . . . Shots Hit Robots 502 | . 65 205 139 41 38 13 1 Core Hits 226 | . 26 101 56 19 20 4 . Critical Kills 1 | . . . 1 . . . . Critical Parts Destroyed . | . . . . . . . . Critical Strikes 15 | . 1 3 9 1 . . 1 Burn 1 | . 1 . . . . . . Destroy 2 | . . 1 1 . . . . Blast 11 | . . 2 8 1 . . . Sever 1 | . . . . . . . 1 Melee Attacks 16 | . . . . . 2 13 1 Impact . | . . . . . . . . Slashing 16 | . . . . . 2 13 1 Piercing . | . . . . . . . . Sneak Attacks . | . . . . . . . . Combat Hostiles . | . . . . . . . . Follow-up Attacks . | . . . . . . . . Damage Inflicted 9842 | . 737 3583 3264 844 928 439 47 Guns 4591 | . 679 2576 779 315 242 . . Cannons 4398 | . 52 780 2485 515 566 . . Explosions 290 | . . 197 . 14 79 . . Melee 522 | . . . . . 36 439 47 Ramming 41 | . 6 30 . . 5 . . Kinetic 7671 | . 281 3054 3264 830 242 . . Thermal 776 | . 450 326 . . . . . Explosive 93 | . . . . 14 79 . . Electromagnetic 739 | . . 173 . . 566 . . Impact . | . . . . . . . . Slashing 522 | . . . . . 36 439 47 Piercing . | . . . . . . . . Highest Corruption . | . . . . . . . . Average Corruption . | . . . . . . . . Corruption Purged . | . . . . . . . . Corruption Blocked . | . . . . . . . . Overload Shots . | . . . . . . . . Overflow Damage 203 | . . 18 136 19 30 . . Projectiles 185 | . . . 136 19 30 . . Explosions 18 | . . 18 . . . . . Melee . | . . . . . . . . Knockbacks 26 | . . 9 16 1 . . . Impact . | . . . . . . . . Kinetic 25 | . . 9 15 1 . . . Secondary 1 | . . . 1 . . . . Self-Inflicted Damage 71 | . . . . 69 2 . . Shots 3 | . . . . 3 . . . Rammed 2 | . 1 . . . 1 . . Targets Rammed 4 | . 1 2 . . 1 . . Kicked 2 | . . 2 . . . . . Crushed . | . . . . . . . . Highest Temperature 356 | . 144 332 356 142 121 . . Average Temperature 68 | . 47 40 120 59 50 . . Received Heat Transfer 2652 | . 198 675 855 486 390 . 48 Effects 5 | . . 1 4 . . . . Shutdowns 1 | . . 1 . . . . . Energy Bleed 4 | . . . 4 . . . . Siege Activations . | . . . . . . . . Robots Corrupted 1 | . . . . . 1 . . Combat Hostiles . | . . . . . . . . Parts Fried 3 | . . 1 . . 2 . . Impact Corruptions . | . . . . . . . . Robots Melted . | . . . . . . . . Combat Hostiles . | . . . . . . . . Parts Melted 4 | . 4 . . . . . . Heat Transferred 1878 | . 1369 509 . . . . . Parts Sabotaged . | . . . . . . . . Parts Stolen . | . . . . . . . . Parts Stripped . | . . . . . . . . Power Chain Reactions 2 | . . 2 . . . . . Alert | -11 -10 -9 -8 -8 -7 -7 -7 ------- Run | Yrd Mat Mat Mat Gar Fac Was Fac Peak Influence 979 | . 269 677 890 979 656 185 150 Initial 581 | . . 24 286 581 513 185 129 Average 415 | . 121 313 621 740 524 185 135 Maximum Alert Level 3 | . 1 2 3 3 2 . . Low Security (%) 21 | 100 76 18 . . . 100 100 Level 1 27 | . 23 59 5 . . . . Level 2 38 | . . 22 68 40 100 . . Level 3 12 | . . . 26 59 . . . Level 4 . | . . . . . . . . Level 5 . | . . . . . . . . High Security . | . . . . . . . . Max Security . | . . . . . . . . Squads Dispatched 15 | . 1 5 5 . 3 . 1 Investigation 4 | . . . 2 . 1 . 1 Extermination . | . . . . . . . . Reinforcement 9 | . 1 5 2 . 1 . . Assault 2 | . . . 1 . 1 . . Garrison . | . . . . . . . . Intercept . | . . . . . . . . Searches Triggered . | . . . . . . . . Construction Impeded 1 | . . . 1 . . . . Haulers Reinforced . | . . . . . . . . Active Scanning Responses . | . . . . . . . . Cargo Convoy Interrupts . | . . . . . . . . Stealth | -11 -10 -9 -8 -8 -7 -7 -7 --------- Run | Yrd Mat Mat Mat Gar Fac Was Fac Distress Signals 6 | . 2 1 3 . . . . Communications Jammed . | . . . . . . . . Distress Signals . | . . . . . . . . Times Spotted 171 | . 24 56 52 13 24 . 2 Peak Tracking Total 7 | . 4 5 6 5 7 . 2 Tactical Retreats 14 | . 1 2 6 1 4 . . Traps | -11 -10 -9 -8 -8 -7 -7 -7 ------- Run | Yrd Mat Mat Mat Gar Fac Was Fac Traps Triggered 5 | . . 1 1 1 2 . . Indirectly . | . . . . . . . . Trap Hack Attempts . | . . . . . . . . Triggered . | . . . . . . . . Disarmed . | . . . . . . . . Reprogrammed 4 | . . 4 . . . . . Reused 2 | . . 2 . . . . . Traps Extracted . | . . . . . . . . Installed . | . . . . . . . . Triggered 2 | . . 2 . . . . . Machines | -11 -10 -9 -8 -8 -7 -7 -7 ---------- Run | Yrd Mat Mat Mat Gar Fac Was Fac Machines Disabled 7 | . . 3 2 1 1 . . Max in Single Turn 1 | . . 1 1 1 1 . . Garrison Relay 1 | . . . . 1 . . . Machines Repaired . | . . . . . . . . Machines Dismantled . | . . . . . . . . Machines Sabotaged . | . . . . . . . . Overloaded Fab Kills . | . . . . . . . . Hacking | -11 -10 -9 -8 -8 -7 -7 -7 --------- Run | Yrd Mat Mat Mat Gar Fac Was Fac Machines Accessed 22 | . 2 5 7 2 5 . 1 Terminals 18 | . 2 4 5 2 4 . 1 Fabricators . | . . . . . . . . Repair Stations 1 | . . . 1 . . . . Recycling Units 1 | . . . . . 1 . . Scanalyzers 1 | . . 1 . . . . . Garrison Access 1 | . . . 1 . . . . Total Hacks 46 | . 4 13 12 3 10 . 4 Successful 29 | . 2 11 8 1 6 . 1 Failed 17 | . 2 2 4 2 4 . 3 Catastrophic 4 | . . . 1 2 1 . . Database Lockouts . | . . . . . . . . Manual 7 | . . 1 1 . 1 . 4 Terminals 35 | . 4 8 8 3 8 . 4 Fabricators . | . . . . . . . . Repair Stations 3 | . . . 3 . . . . Recycling Units 2 | . . . . . 2 . . Scanalyzers 5 | . . 5 . . . . . Garrison Access 1 | . . . 1 . . . . Terminal Hacks 18 | . 2 6 5 1 4 . . Record 2 | . . 2 . . . . . Prototype ID Bank 5 | . 2 1 1 . 1 . . Open DSF 1 | . . . . . 1 . . Branch Access Points 2 | . . . 1 . 1 . . Emergency Access Points 3 | . . . 1 1 1 . . Locate Traps 1 | . . 1 . . . . . Reprogram Traps 2 | . . 2 . . . . . Maintenance Status 1 | . . . 1 . . . . Hauler Manifests 1 | . . . 1 . . . . Fabricator Hacks . | . . . . . . . . Repair Station Hacks 2 | . . . 2 . . . . Scan Component 1 | . . . 1 . . . . Repair 1 | . . . 1 . . . . Recycling Unit Hacks 2 | . . . . . 2 . . Report Inventory 2 | . . . . . 2 . . Scanalyzer 4 | . . 4 . . . . . Insert Component 2 | . . 2 . . . . . Analyze 2 | . . 2 . . . . . Garrison Access Hacks 1 | . . . 1 . . . . Unlock Access 1 | . . . 1 . . . . Unauthorized Hacks 2 | . . 1 . . . . 1 Terminals 2 | . . 1 . . . . 1 Assimilate 2 | . . 1 . . . . 1 Fabricators . | . . . . . . . . Repair Stations . | . . . . . . . . Recycling Units . | . . . . . . . . Scanalyzers . | . . . . . . . . Garrison Access . | . . . . . . . . Data Cores Recovered 1 | . . 1 . . . . . Used . | . . . . . . . . Hacking Detections 16 | . 2 3 5 2 3 . 1 Full Trace Events 4 | . . . 1 1 1 . 1 Feedback Events . | . . . . . . . . Feedback Blocked . | . . . . . . . . Robot Schematics Acquired . | . . . . . . . . Robots Built . | . . . . . . . . Authchips . | . . . . . . . . Time . | . . . . . . . . Total Robot Build Rating . | . . . . . . . . Part Schematics Acquired 2 | . . 2 . . . . . Parts Built . | . . . . . . . . Authchips . | . . . . . . . . Time . | . . . . . . . . Total Part Build Rating . | . . . . . . . . Parts Repaired 1 | . . . 1 . . . . Time 26 | . . . 26 . . . . Parts Recycled . | . . . . . . . . Recycled Matter . | . . . . . . . . Retrieved Matter . | . . . . . . . . Retrieved Components . | . . . . . . . . Parts Scanalyzed 2 | . . 2 . . . . . Part Schematics Acquired 2 | . . 2 . . . . . Parts Damaged 1 | . . 1 . . . . . Bothacking | -11 -10 -9 -8 -8 -7 -7 -7 ------------ Run | Yrd Mat Mat Mat Gar Fac Was Fac Used RIF Installer . | . . . . . . . . Robots Hacked . | . . . . . . . . Non-combat . | . . . . . . . . Combat . | . . . . . . . . Robot Hacks Applied . | . . . . . . . . Relay Couplers Released 3 | . . . . 3 . . . Machine Destruction 3 | . . . . 3 . . . Fabnet Peak Effective % . | . . . . . . . . Robots Rewired . | . . . . . . . . Allies Hacked . | . . . . . . . . Hacks Repelled . | . . . . . . . . Allies | -11 -10 -9 -8 -8 -7 -7 -7 -------- Run | Yrd Mat Mat Mat Gar Fac Was Fac Total Allies . | . . . . . . . . Largest Group . | . . . . . . . . Highest-Rated Group . | . . . . . . . . Highest-Rated Ally . | . . . . . . . . Total Orders . | . . . . . . . . Ally Attacks . | . . . . . . . . Total Damage . | . . . . . . . . Kills . | . . . . . . . . Allies Corrupted . | . . . . . . . . Allies Melted . | . . . . . . . . Intel | -11 -10 -9 -8 -8 -7 -7 -7 ------- Run | Yrd Mat Mat Mat Gar Fac Was Fac Robot Analysis Total . | . . . . . . . . Derelict Logs Recovered . | . . . . . . . . Drone Launches . | . . . . . . . . Drone Recoveries . | . . . . . . . . Exploration | -11 -10 -9 -8 -8 -7 -7 -7 ------------- Run | Yrd Mat Mat Mat Gar Fac Was Fac Turns Passed 6815 | 56 936 2668 1529 731 669 170 56 Spaces Moved 3707 | 42 447 1442 662 243 477 281 113 Core 337 | 10 . . . . 148 116 63 Treads 1509 | . 333 60 600 243 273 . . Legs 1590 | 32 114 1382 62 . . . . Wheels . | . . . . . . . . Hover . | . . . . . . . . Flight 271 | . . . . . 56 165 50 Fastest Speed 35 | 50 120 120 120 151 35 40 40 Average Speed 133 | 103 166 138 144 193 116 44 46 Slowest Speed 240 | 120 190 240 190 237 240 50 100 Overloaded Moves . | . . . . . . . . Propulsion Burnouts . | . . . . . . . . Robots Hopped 3 | . . . . . 2 . 1 Cave-ins Triggered 1 | . . 1 . . . . . Exploration Rate (%) 49 | 3 79 95 70 35 15 96 3 Regions Visited 7 Branch Regions . Pre-discovered Areas . | . . . . . . . . Known Exits Taken 1 | . . . 1 . . . . Unknown Exits Taken 3 | 1 1 1 . . . . . Scrap Searched . | . . . . . . . . Spaces Dug 1 | . . . . . 1 . . Terrain Destroyed 87 | . . 2 43 20 22 . . Melee 1 | . . . . . 1 . . Projectile 43 | . . . 43 . . . . AOE 43 | . . 2 . 20 21 . . Terrain Rammed . | . . . . . . . . Walls Destroyed . | . . . . . . . . Machines Disabled . | . . . . . . . . Actions | -11 -10 -9 -8 -8 -7 -7 -7 --------- Run | Yrd Mat Mat Mat Gar Fac Was Fac Total 4824 | 53 534 1817 1019 436 545 306 114 Wait 451 | . 11 86 220 130 4 . . Move 3697 | 41 446 1441 662 242 474 280 111 Hop 2 | . . . . . 1 . 1 Pick Up 77 | 6 9 38 9 4 10 1 . Fast Attach 13 | 3 . 3 2 . 3 2 . Attach 43 | 3 3 12 6 6 12 1 . Detach 4 | . 1 . . . 2 . 1 Swap 48 | . 6 29 7 1 5 . . Drop 47 | . 1 34 4 1 6 1 . Fire 412 | . 56 172 109 50 25 . . Melee 16 | . . . . . 2 13 1 Ram 1 | . . . . . 1 . . Kick 2 | . . 2 . . . . . Crush 1 | . 1 . . . . . . Escape Stasis 2 | . . . . 2 . . . Rewire 8 | . . . . . . 8 . Trap . | . . . . . . . . Miscellaneous . | . . . . . . . . Route ------- -11/Scrapyard -10/Materials (discovered 3 exits: *Mat x2 / [*Min]) -9/Materials (discovered 4 exits: *Mat x3 / [*Min]) -8/Materials (discovered 2 exits: *Fac / Gar) -8/Garrison -7/Factory (discovered 3 exits: Sto / Low x2) -7/Waste -7/Factory History --------- Turn | Location | Event 7 | -11/Scrapyard | Discovered new exit (range 15) 57 | -11/Scrapyard | Entered Materials 272 | -10/Materials | Discovered new exit (range 9) 300 | -10/Materials | Build established: Mutant 460 | -10/Materials | Discovered new exit (range 8) 823 | -10/Materials | Discovered new exit (range 4) 993 | -10/Materials | Entered another Materials area 993 | -9/Materials | Evolved 2 slots: Propulsion x2 1181 | -9/Materials | Lost 3 parts (2n1w) 1866 | -9/Materials | Discovered new exit (range 16) 2668 | -9/Materials | Discovered new exit (range 16) 3047 | -9/Materials | Discovered new exit (range 16) 3128 | -9/Materials | Crushed by falling debris 3463 | -9/Materials | Core integrity fell below 50% 3533 | -9/Materials | Discovered new exit (range 16) 3661 | -9/Materials | Entered another Materials area 3661 | -8/Materials | Evolved 2 slots: Utility x2 3777 | -8/Materials | Destroyed 7 combat bots 4171 | -8/Materials | Discovered new exit (range 14) 4861 | -8/Materials | First assault squad dispatched 4939 | -8/Materials | Repaired Lgt. Armor Plating 5014 | -8/Materials | Core integrity fell below 50% 5190 | -8/Materials | Identified exit to Garrison 5190 | -8/Materials | Entered Garrison 5222 | -8/Garrison | Triggered checkpoint 5450 | -8/Garrison | Triggered checkpoint 5549 | -8/Garrison | Core integrity fell below 20% 5578 | -8/Garrison | Lost 4 parts (1p2n1w) 5586 | -8/Garrison | Triggered checkpoint 5700 | -8/Garrison | Triggered checkpoint 5752 | -8/Garrison | Garrison Relay disabled 5877 | -8/Garrison | Discovered new exit (range 15) 5921 | -8/Garrison | Entered Factory 5921 | -7/Factory | Evolved 2 slots: Utility x2 6271 | -7/Factory | Lost 5 parts (2n1u2w) 6321 | -7/Factory | First assault squad dispatched 6467 | -7/Factory | Identified exit to Storage 6467 | -7/Factory | Identified exit to Lower Caves 6555 | -7/Factory | Core integrity fell below 50% 6580 | -7/Factory | Core integrity fell below 20% 6590 | -7/Factory | Sucked down chute 6590 | -7/Factory | Entered Waste 6590 | -7/Waste | The area was eerily silent 6668 | -7/Waste | Build established: Hacker-Mutant 6745 | -7/Waste | Discovered new exit (range 14) 6760 | -7/Waste | Entered Factory 6816 | -7/Factory | Destroyed by Y-54 Guardian with Flak Gun Last Messages --------------- 06702_ Acquired 10 matter. 06745_ EXIT=FOUND 06757_ Dropped Cooling System. 06758_ Acquired Dispersion Rifle. LOCATION=UNKNOWN GOAL=ESCAPE 06772_ ALERT: All DSF locations entering lockdown mode. 06772_ O-24 Administrator: "IFF HANDSHAKE FAILED. SECURING TERMINAL." 06776_ Connecting with Terminal... 06776_ Current location identified: Factory >>Trojan(Assimilate) Trojan loaded successfully. Testing... System interface override in place. 06776_ ALERT: Suspicious activity at Terminal F005. Dispatching Investigation squad. 06780_ O-24 Administrator Lgt. Deuterium Engine severed. 06783_ Impulse Thruster destroyed. 06805_ Adv. Hacking Suite destroyed. 06808_ Scythe destroyed. Map ----- +----------------------------------------------------+ | ?????????????????????????????????????????????????? | | ?????????????????????????????????????????????????? | | ?????????????????????????????????????????????????? | | ??????????????????###########????????????????????? | | ??????????????????# #????? ???????????? | | ??????????????????# """" "" # ?""""""""" #???????? | | ??????????????????# """" "" #[ #???????? | | ??????????????????# """" T" # """"""""" #???????? | | ??????????????????# """" "" # #???????? | | ??????????????????# """" ""*#] """"""""" #???????? | | ??????????????????# """" # #???????? | | ??????????????????# # """"""""" #???????? | | ??????????????????# !! # #???????? | | ??????????????????# !! #######+############?? | | ??????????????????# #???# + #?? | | ??????????????????# #???# # """ #?? | | ############??????# #???# # """ #?? | | #??????# ##### + """ #?? | | ######## + o # #?? | | [ # # # Y #/ """ #?? | | # ##########+#u # """ #?? | | ! # # """ #?? | | + # #?? | | # ##########?? | | # #??????????? | | # @ #??????????? | | ! ######## ###+###########??????????? | | #??????# # ???????????????????? | | #??????# # ?????????????????? | | ############??????# # ???????????????? | | ??????????????????# # ?????????????? | | ??????????????????# # #???????????? | | ??????????????????# # #???????????? | | ??????????????????# # #???????????? | | ??????????????????# # #???????????? | | ??????????????????# # #???????????? | | ??????????????????+ # #???????????? | | ??????????????????# # #???????????? | | ??????????????????# # ????????????? | | ??????????????????? ###########??????????????? | | ?????????????????????????????????????????????????? | | ?????????????????????????????????????????????????? | | ?????????????????????????????????????????????????? | | ?????????????????????????????????????????????????? | | ?????????????????????????????????????????????????? | | ?????????????????????????????????????????????????? | | ?????????????????????????????????????????????????? | | ?????????????????????????????????????????????????? | | ?????????????????????????????????????????????????? | | ?????????????????????????????????????????????????? | +----------------------------------------------------+ Best States ------------- Heat Dissipation 34 Energy Generation 14 Energy Capacity 280 Matter Stores 300 Matter Capacity 300 Sight Range 16 Robot Scan Range 15 Terrain Scan Density 10 Armor Coverage 300 Resistance: KI 20 Evasion (%) 63 Targeting Accuracy 14 Recoil Reduction 4 Offensive Hacking 50 Item Schematics ----------------- Adv. Beam Cannon | -9/Materials | Scanalyzed Imp. Flight Unit | -9/Materials | Scanalyzed Robot Schematics ------------------ None Fabricated ------------ Nothing Alien Tech Used ----------------- None Achievements -------------- None Challenges ------------ None Game ------ Seed TripodCoolingMallet Manual? 0 Play Time 01:00:42 Cumulative 40.9 hours Start 2025.03.25 @ 17:57:09 End 2025.03.28 @ 09:04:22 Sessions 3 Manual Loads 0 Difficulty Rogue Special Mode None Game No. 74 Rogue 74 Adventurer 0 Explorer 0 Win Type - Total 0 Types 0/0/0/0/0/0/0/0/0 Lore% 37 Gallery% 38 Achievement% 34 Wizard Run 0 Options --------- Layout 0 ASCII 0 Keyboard 0 Movement Mouse Keybinds 0 Fullscreen 1 Font 16/SmallcapsGlow Map View 75x55 Zoom Use 0% Tactical HUD 1 Map Filters NONE Filters NONE Steam 1 RUN: e1d59af4-10d1-4263-9af1-749683d908b3